Workbook

Sheet Champs
A1: HAVOC Club Championships 2021 - Baddow Ridge - Sunday, September 19
A3: Women's Championship | J3: Actual Speed | K3: Actual | L3: Handicap | M3: Adjusted Speed | N3: Handicap
C4: Class | D4: Time | I4: Seconds | J4: Mins/km | K4: Place | L4: Correction | M4: Mins/km | N4: Place
A5: Green Course - 4.0 km
A6: Janet Biggs | C6: W65 | D6: 100.49 | F6: 100 | G6: 49 | I6: =F6*60+G6 -> 6049 | J6: =I6/60/S6 -> 25.20416667 | K6: 1 | L6: 0.48 | M6: =J6*L6 -> 12.098 | N6: 1 | P6: Open Champion | S6: 4
A7: Barbara Beckett | C7: W65 | D7: 109.3 | F7: 109 | G7: 30 | I7: =F7*60+G7 -> 6570 | J7: =I7/60/S7 -> 27.375 | K7: 2 | L7: 0.48 | M7: =J7*L7 -> 13.14 | N7: 2 | P7: Handicap Champion | S7: =S6 -> 4
A10: Men's Championship | J10: Actual Speed | K10: Actual | L10: Handicap | M10: Adjusted Speed | N10: Handicap
C11: Class | D11: Time | I11: Seconds | J11: Mins/km | K11: Place | L11: Correction | M11: Mins/km | N11: Place
A12: Brown Course - 7.6 km
A13: Michael Muggeridge | C13: M60 | D13: 79.49 | F13: 79 | G13: 49 | I13: =F13*60+G13 -> 4789 | J13: =I13/60/S13 -> 10.50219298 | K13: 1 | L13: 0.7 | M13: =J13*L13 -> 7.351535088 | N13: 1 | P13: Open Champion | S13: 7.6
A14: Paul Beckett | C14: M60 | D14: 85.47 | F14: 85 | G14: 47 | I14: 5147 | J14: =I14/60/S14 -> 11.2872807 | K14: 2 | L14: 0.7 | M14: =J14*L14 -> 7.901096491 | N14: 2 | P14: Handicap Champion | S14: =S13 -> 7.6
A16: Blue Course - 5.8 km
A17: Guy Lidbury | C17: M50 | D17: 69.31 | F17: 69 | G17: 31 | I17: =F17*60+G17 -> 4171 | J17: =I17/60/S17 -> 11.98563218 | K17: 3 | L17: 0.82 | M17: =J17*L17 -> 9.828218391 | N17: 5 | S17: 5.8
A18: David Float | C18: M50 | D18: 75.42 | F18: 75 | G18: 42 | I18: =F18*60+G18 -> 4542 | J18: =I18/60/S18 -> 13.05172414 | K18: 4 | L18: 0.82 | M18: =J18*L18 -> 10.70241379 | N18: 6 | S18: =S17 -> 5.8
A19: Dale Bennett | C19: M55 | D19: 99.39 | F19: 99 | G19: 39 | I19: =F19*60+G19 -> 5979 | J19: 17.18103448 | K19: 7 | L19: 0.77 | M19: =J19*L19 -> 13.22939655 | N19: 9 | S19: =S17 -> 5.8
A21: Green Course - 4.0 km
A22: Garry Parmenter | C22: M75 | D22: 66.08 | F22: 66 | G22: 8 | I22: =F22*60+G22 -> 3968 | J22: =I22/60/S22 -> 16.53333333 | K22: 5 | L22: 0.51 | M22: =J22*L22 -> 8.432 | N22: 3 | S22: 4
A23: Chris Shaw | C23: M70 | D23: 66.31 | F23: 66 | G23: 31 | I23: =F23*60+G23 -> 3991 | J23: 16.62916667 | K23: 6 | L23: 0.57 | M23: =J23*L23 -> 9.478625 | N23: 4 | S23: =S22 -> 4
A24: Colin Jackson | C24: M60 | D24: 70.36 | F24: 70 | G24: 36 | I24: =F24*60+G24 -> 4236 | J24: 17.65 | K24: 8 | L24: 0.7 | M24: =J24*L24 -> 12.355 | N24: 7 | S24: =S22 -> 4
A25: Tony Biggs | C25: M70 | D25: 91.34 | F25: 91 | G25: 34 | I25: 5494 | J25: 22.89166667 | K25: 9 | L25: 0.57 | M25: 13.04825 | N25: 8 | S25: =S22 -> 4
A26: Graham Batty | C26: M60 | D26: Controller
A28: Junior Championships | J28: Actual Speed | K28: Actual | L28: Handicap | M28: Adjusted Speed | N28: Handicap
C29: Class | D29: Time | I29: Seconds | J29: Mins/km | K29: Place | L29: Correction | M29: Mins/km | N29: Place
A31: Orange Course - 2.7 km
A32: Charlie Maule-Lidbury | C32: M11 | D32: 62.29 | F32: 62 | G32: 29 | I32: =F32*60+G32 -> 3749 | J32: =I32/60/S32 -> 23.14197531 | K32: 1 | P32: Best Intermediate Boy | S32: 2.7
A34: White Course - 1.4 km
A35: Hugo Maule-Lidbury | C35: M9 | D35: 11.56 | F35: 11 | G35: 56 | I35: =F35*60+G35 -> 716 | J35: =I35/60/S35 -> 8.523809524 | K35: 1 | P35: Best Junior Boy | S35: 1.4
A36: Amelie Maule-Lidbury | C36: W7 | D36: 19.52 | F36: 19 | G36: 52 | I36: =F36*60+G36 -> 1192 | J36: 14.19047619 | K36: 1 | P36: Best Infant Girl | S36: =S35 -> 1.4
